[Event "48th Indian U15-ch Open 2023"]
[Site "Jalgaon"]
[Date "2024.01.03"]
[Round "10.4"]
[White "Mokshith, Pasupulety"]
[Black "Samyak Dharewa"]
[Result "0-1"]
[ECO "B42"]
[WhiteElo "1478"]
[BlackElo "1939"]
[Annotator "RC"]
[PlyCount "126"]
[EventDate "2023.12.30"]
[EventType "swiss"]
[EventCountry "IND"]
[SourceTitle "playchess.com"]
[Source "ChessBase"]
[SourceQuality "1"]
[TimeControl "5400+30"]

1. e4 {[%emt 0:02:26]} c5 {[%emt 0:00:07]} 2. Nf3 {[%emt 0:00:03]} e6 {[%emt 0:00:05]} 3. d4 {[%emt 0:00:03]} cxd4 {[%emt 0:00:13]} 4. Nxd4 {[%emt 0:00:02]} a6 {[%emt 0:00:01]} 5. Bd3 {[%emt 0:02:28]} Nf6 {[%emt 0:00:03]} 6. O-O {[%emt 0:00:17]} Qc7 {[%emt 0:00:02]} 7. Qe2 {[%emt 0:00:14]} d6 {[%emt 0:00:03]} 8. c4 {[%emt 0:00:09]} g6 {[%emt 0:00:16]} 9. Nc3 {[%emt 0:00:17]} Bg7 {[%emt 0:00:02]} 10. Be3 {[%emt 0:00:55]} O-O {[%emt 0:00:32]} 11. Rac1 {[%emt 0:00:34]} b6 {[%emt 0:00:19]} 12. Rfd1 {[%emt 0:00:12]} Bb7 {[%emt 0:00:32]} 13. f3 {[%emt 0:00:20]} Nbd7 {[%emt 0:00:22]} 14. b3 {[%emt 0:02:05]} Rac8 {[%emt 0:01:00]} 15. Qf2 {[%emt 0:00:13]} Qb8 {[%emt 0:03:35]} 16. Bf1 {[%emt 0:00:17]} Rfd8 {[%emt 0:13:40]} 17. h3 {[%emt 0:01:41]} Ba8 {[%emt 0:14:18]} 18. Kh1 {[%emt 0:00:54]} Rc7 {[%emt 0:05:21]} 19. Nde2 {[%emt 0:08:21]} Ne8 {[%emt 0:00:57]} 20. a4 {[%emt 0:06:44]} Rcc8 {[%emt 0:04:27]} 21. Bd4 {[%emt 0:09:59]} Nef6 {[%emt 0:01:03]} 22. g4 {[%emt 0:02:21]} h6 {[%emt 0:00:50]} 23. Bg2 {[%emt 0:00:37]} Nc5 {[%emt 0:01:30]} 24. Rb1 {[%emt 0:02:58]} Bc6 {[%emt 0:01:16]} 25. b4 {[%emt 0:08:42]} Ncd7 {[%emt 0:00:54]} 26. Bf1 {[%emt 0:02:47]} Ba8 {[%emt 0:11:37]} 27. Nc1 {[%emt 0:01:22]} Ne8 {[%emt 0:05:02]} 28. Nb3 {[%emt 0:03:36]} Bxd4 {[%emt 0:00:35]} 29. Qxd4 {[%emt 0:00:23]} Ne5 {[%emt 0:00:22]} 30. Nd2 {[%emt 0:03:13]} Qc7 {[%emt 0:00:19]} 31. Rdc1 {[%emt 0:02:17]} Rb8 {[%emt 0:00:14]} 32. Qe3 {[%emt 0:01:46]} g5 {[%emt 0:03:33]} 33. f4 {[%emt 0:04:05]} gxf4 {[%emt 0:00:13]} 34. Qxf4 {[%emt 0:00:01]} Kh7 {[%emt 0:00:37]} 35. Be2 {[%emt 0:00:45]} Qe7 {[%emt 0:01:07]} 36. Kh2 {[%emt 0:02:41]} Ng6 {[%emt 0:03:10]} 37. Qf2 {[%emt 0:00:51]} Qf6 {[%emt 0:00:38]} 38. Nf3 {[%emt 0:02:44]} Qf4+ {[%emt 0:00:32]} 39. Qg3 {[%emt 0:00:36]} Nf6 {[%emt 0:01:49]} 40. Bd3 {[%emt 0:01:30]} Qxg3+ {[%emt 0:00:13]} 41. Kxg3 {[%emt 0:00:03]} Ne5 {[%emt 0:00:02]} 42. Nxe5 {[%emt 0:02:38]} dxe5 {[%emt 0:00:03]} 43. Rd1 {[%emt 0:00:32]} Rd4 {[%emt 0:03:18]} 44. Kf3 {[%emt 0:00:45]} Rbd8 {[%emt 0:00:40]} 45. Ke3 {[%emt 0:00:39]} Kg6 {[%emt 0:00:59]} 46. Rb3 {[%emt 0:11:26]} Kg5 {[%emt 0:03:16]} 47. Ne2 {[%emt 0:01:03]} Rxc4 {[%emt 0:05:39]} 48. Ng1 {[%emt 0:00:30]} Bxe4 {[%emt 0:01:37]} 49. Bxc4 {[%emt 0:00:56]} Rxd1 {[%emt 0:00:09]} 50. Nf3+ {[%emt 0:00:28]} Bxf3 {[%emt 0:00:30]} 51. Kxf3 {[%emt 0:00:01]} e4+ {[%emt 0:01:31]} 52. Kg3 {[%emt 0:00:15]} Nd5 {[%emt 0:00:12]} 53. Bxa6 {[%emt 0:00:49]} f5 {[%emt 0:00:09]} 54. gxf5 {[%emt 0:00:31]} exf5 {[%emt 0:00:02]} 55. a5 {[%emt 0:00:36]} f4+ {[%emt 0:00:51]} 56. Kf2 {[%emt 0:00:09]} bxa5 {[%emt 0:01:32]} 57. bxa5 {[%emt 0:00:19]} f3 {[%emt 0:00:15]} 58. Bb7 {[%emt 0:00:52]} Kf4 {[%emt 0:00:21]} 59. Bxd5 {[%emt 0:03:33]} Rxd5 {[%emt 0:00:07]} 60. Ra3 {[%emt 0:00:16]} e3+ {[%emt 0:00:25]} 61. Ke1 {[%emt 0:00:11]} f2+ {[%emt 0:00:07]} 62. Ke2 {[%emt 0:00:06]} Rd2+ {[%emt 0:00:06]} 63. Kf1 {[%emt 0:00:03]} Rd1+ {[%emt 0:00:05]} 0-1

[Event "48th Indian U15-ch Open 2023"]
[Site "Jalgaon"]
[Date "2024.01.03"]
[Round "10.5"]
[White "Jain, Kushagra"]
[Black "Madhvendra Pratap Sharma"]
[Result "1/2-1/2"]
[ECO "C02"]
[WhiteElo "1804"]
[BlackElo "1803"]
[Annotator "NA RC"]
[PlyCount "49"]
[EventDate "2023.12.30"]
[EventType "swiss"]
[EventCountry "IND"]
[SourceTitle "playchess.com"]
[Source "ChessBase"]
[SourceQuality "1"]
[TimeControl "5400+30"]

1. e4 {[%emt 0:00:33]} e6 {[%emt 0:00:05]} 2. d4 {[%emt 0:00:06]} d5 {[%emt 0:00:11]} 3. e5 {[%emt 0:00:12]} c5 {[%emt 0:00:05]} 4. c3 {[%emt 0:00:07]} Nc6 {[%emt 0:00:04]} 5. Nf3 {[%emt 0:00:05]} Qb6 {[%emt 0:00:10]} 6. Bd3 {[%emt 0:00:24]} Bd7 {[%emt 0:00:50]} 7. dxc5 {[%emt 0:02:47]} Bxc5 {[%emt 0:00:11]} 8. O-O {[%emt 0:00:09]} a5 {[%emt 0:04:15]} 9. Qe2 {[%emt 0:08:11]} Nge7 {[%emt 0:06:29]} 10. Nbd2 {[%emt 0:01:28]} Qa7 {[%emt 0:10:16]} 11. Nb3 {[%emt 0:08:26]} Bb6 {[%emt 0:00:11]} 12. a4 {[%emt 0:05:04]} Ng6 {[%emt 0:10:27]} 13. Bb5 {[%emt 0:27:37]} Rc8 {[%emt 0:08:29]} 14. h4 {[%emt 0:05:20]} Nge7 {[%emt 0:08:45]} 15. h5 {[%emt 0:04:01]} h6 {[%emt 0:02:28]} 16. Bf4 {[%emt 0:02:11]} Nb8 {[%emt 0:12:39]} 17. Nfd4 {[%emt 0:06:57]} Nbc6 {[%emt 0:06:41]} 18. Nf3 {[%emt 0:06:48]} Nb8 {[%emt 0:01:45]} 19. Bd3 {[%emt 0:06:29]} Nbc6 {[%emt 0:09:47]} 20. Rad1 {[%emt 0:03:30]} Rd8 {[%emt 0:07:34]} 21. Bc2 {[%emt 0:02:41]} Qa6 {[%emt 0:01:26]} 22. Bd3 {[%emt 0:00:45]} Qa7 {[%emt 0:00:28]} 23. Bc2 {[%emt 0:03:11]} Qa6 {[%emt 0:00:17]} 24. Bd3 {[%emt 0:01:32]} Qa7 {[%emt 0:00:32]} 25. Bc2 {[%emt 0:01:45]} 1/2-1/2

[Event "48th Indian U15-ch Open 2023"]
[Site "Jalgaon"]
[Date "2024.01.03"]
[Round "10.6"]
[White "Sri Charan Sandipagu"]
[Black "Mayank Chakraborty"]
[Result "0-1"]
[ECO "D02"]
[WhiteElo "1711"]
[BlackElo "2403"]
[Annotator "RC"]
[PlyCount "112"]
[EventDate "2023.12.30"]
[EventType "swiss"]
[EventCountry "IND"]
[SourceTitle "playchess.com"]
[Source "ChessBase"]
[SourceQuality "1"]
[TimeControl "5400+30"]

1. d4 {[%emt 0:00:19]} Nf6 {[%emt 0:00:01]} 2. Bf4 {[%emt 0:00:10]} d5 {[%emt 0:00:02]} 3. e3 {[%emt 0:00:09]} c5 {[%emt 0:00:01]} 4. c3 {[%emt 0:00:08]} Nc6 {[%emt 0:00:03]} 5. Nd2 {[%emt 0:00:10]} e6 {[%emt 0:01:26]} 6. Ngf3 {[%emt 0:00:13]} cxd4 {[%emt 0:00:02]} 7. exd4 {[%emt 0:00:13]} Nh5 {[%emt 0:00:02]} 8. Be3 {[%emt 0:00:15]} Bd6 {[%emt 0:00:03]} 9. Ne5 {[%emt 0:01:38]} Nf6 {[%emt 0:00:02]} 10. f4 {[%emt 0:00:09]} Qb6 {[%emt 0:00:01]} 11. Rb1 {[%emt 0:01:22]} Nxe5 {[%emt 0:00:20]} 12. fxe5 {[%emt 0:00:35]} Bxe5 {[%emt 0:00:02]} 13. Bd3 {[%emt 0:00:44]} Bc7 {[%emt 0:02:21]} 14. Qf3 {[%emt 0:03:03]} Qd6 {[%emt 0:02:26]} 15. g3 {[%emt 0:04:04]} h5 {[%emt 0:15:52]} 16. O-O {[%emt 0:24:01]} h4 {[%emt 0:00:10]} 17. Bf4 {[%emt 0:00:13]} Qe7 {[%emt 0:01:02]} 18. Be5 {[%emt 0:11:23]} Bxe5 {[%emt 0:01:38]} 19. dxe5 {[%emt 0:00:16]} Nd7 {[%emt 0:00:46]} 20. Qg4 {[%emt 0:09:07]} f5 {[%emt 0:04:58]} 21. exf6 {[%emt 0:04:19]} Nxf6 {[%emt 0:01:52]} 22. Qg6+ {[%emt 0:01:12]} Kd8 {[%emt 0:01:12]} 23. Nf3 {[%emt 0:02:34]} Rh6 {[%emt 0:02:25]} 24. Qg5 {[%emt 0:01:06]} Rh5 {[%emt 0:00:47]} 25. Qe3 {[%emt 0:07:42]} hxg3 {[%emt 0:00:20]} 26. hxg3 {[%emt 0:02:18]} e5 {[%emt 0:01:01]} 27. Nh4 {[%emt 0:18:06]} Bh3 {[%emt 0:08:19]} 28. Be2 {[%emt 0:03:23]} Rxh4 {[%emt 0:00:52]} 29. gxh4 {[%emt 0:02:14]} Bxf1 {[%emt 0:00:02]} 30. Rxf1 {[%emt 0:00:07]} Kc7 {[%emt 0:00:55]} 31. Rf5 {[%emt 0:00:07]} Ne4 {[%emt 0:08:06]} 32. Bd3 {[%emt 0:01:29]} Qc5 {[%emt 0:03:37]} 33. Rf7+ {[%emt 0:00:06]} Kc6 {[%emt 0:02:09]} 34. Qxc5+ {[%emt 0:00:05]} Nxc5 {[%emt 0:00:05]} 35. Bg6 {[%emt 0:00:11]} Rg8 {[%emt 0:05:08]} 36. Bh7 {[%emt 0:00:31]} Rh8 {[%emt 0:00:32]} 37. Rxg7 {[%emt 0:00:07]} Na4 {[%emt 0:01:06]} 38. h5 {[%emt 0:01:43]} Nxb2 {[%emt 0:00:07]} 39. Bg6 {[%emt 0:01:03]} Nd1 {[%emt 0:01:24]} 40. Re7 {[%emt 0:01:03]} Kd6 {[%emt 0:07:49]} 41. Rxb7 {[%emt 0:00:24]} Nxc3 {[%emt 0:01:27]} 42. Rxa7 {[%emt 0:00:05]} Ne2+ {[%emt 0:00:08]} 43. Kf2 {[%emt 0:00:24]} Nf4 {[%emt 0:00:05]} 44. Ra6+ {[%emt 0:02:50]} Kc5 {[%emt 0:01:04]} 45. Ke3 {[%emt 0:01:05]} Nxh5 {[%emt 0:00:36]} 46. Bf7 {[%emt 0:00:23]} Nf4 {[%emt 0:00:12]} 47. Ra5+ {[%emt 0:00:38]} Kd6 {[%emt 0:00:21]} 48. Ra6+ {[%emt 0:00:06]} Kc7 {[%emt 0:02:32]} 49. Bxd5 {[%emt 0:00:45]} Nxd5+ {[%emt 0:00:06]} 50. Ke4 {[%emt 0:00:04]} Nb4 {[%emt 0:00:14]} 51. Re6 {[%emt 0:00:28]} Nc6 {[%emt 0:00:07]} 52. Kd5 {[%emt 0:00:21]} Rd8+ {[%emt 0:00:04]} 53. Kc5 {[%emt 0:00:12]} Nb8 {[%emt 0:00:04]} 54. Re7+ {[%emt 0:00:44]} Nd7+ {[%emt 0:00:05]} 55. Kd5 {[%emt 0:00:11]} Ra8 {[%emt 0:00:04]} 56. Ke6 {[%emt 0:01:37]} Ra6+ {[%emt 0:00:04]} 0-1

[Event "48th Indian U15-ch Open 2023"]
[Site "Jalgaon"]
[Date "2024.01.03"]
[Round "10.7"]
[White "Vignesh Advaith Vemula"]
[Black "Agnivo, Chakraborty"]
[Result "1/2-1/2"]
[ECO "C92"]
[WhiteElo "2028"]
[BlackElo "1690"]
[Annotator "RC"]
[PlyCount "126"]
[EventDate "2023.12.30"]
[EventType "swiss"]
[EventCountry "IND"]
[SourceTitle "playchess.com"]
[Source "ChessBase"]
[SourceQuality "1"]
[TimeControl "5400+30"]

1. e4 {[%emt 0:00:02]} e5 {[%emt 0:00:04]} 2. Nf3 {[%emt 0:00:16]} Nc6 {[%emt 0:00:06]} 3. Bb5 {[%emt 0:00:29]} a6 {[%emt 0:00:06]} 4. Ba4 {[%emt 0:00:02]} Nf6 {[%emt 0:00:08]} 5. O-O {[%emt 0:01:08]} Be7 {[%emt 0:00:05]} 6. Re1 {[%emt 0:00:12]} b5 {[%emt 0:00:05]} 7. Bb3 {[%emt 0:00:04]} d6 {[%emt 0:00:04]} 8. c3 {[%emt 0:00:40]} O-O {[%emt 0:00:19]} 9. h3 {[%emt 0:00:04]} Be6 {[%emt 0:00:13]} 10. d4 {[%emt 0:05:40]} Bxb3 {[%emt 0:00:06]} 11. Qxb3 {[%emt 0:00:17]} d5 {[%emt 0:00:15]} 12. exd5 {[%emt 0:05:24]} Na5 {[%emt 0:00:05]} 13. Qc2 {[%emt 0:01:29]} exd4 {[%emt 0:00:05]} 14. Nxd4 {[%emt 0:00:19]} Re8 {[%emt 0:00:32]} 15. Nd2 {[%emt 0:06:11]} Qxd5 {[%emt 0:02:49]} 16. Nf1 {[%emt 0:01:31]} Bd6 {[%emt 0:13:29]} 17. Be3 {[%emt 0:04:11]} Nc4 {[%emt 0:09:29]} 18. Nf5 {[%emt 0:04:57]} Nxe3 {[%emt 0:10:53]} 19. N1xe3 {[%emt 0:00:29]} Qc6 {[%emt 0:04:39]} 20. Nxd6 {[%emt 0:00:24]} Qxd6 {[%emt 0:00:22]} 21. Rad1 {[%emt 0:00:29]} Qc6 {[%emt 0:08:29]} 22. Nf5 {[%emt 0:02:31]} Qc5 {[%emt 0:01:39]} 23. Qd3 {[%emt 0:00:47]} g6 {[%emt 0:01:03]} 24. Ne3 {[%emt 0:02:03]} Kg7 {[%emt 0:02:26]} 25. c4 {[%emt 0:03:15]} Qb4 {[%emt 0:06:57]} 26. b3 {[%emt 0:05:24]} Rad8 {[%emt 0:02:17]} 27. Qf1 {[%emt 0:00:42]} c6 {[%emt 0:01:48]} 28. Re2 {[%emt 0:03:17]} Qa5 {[%emt 0:02:54]} 29. Rxd8 {[%emt 0:03:04]} Rxd8 {[%emt 0:04:28]} 30. Qa1 {[%emt 0:01:58]} Qb6 {[%emt 0:00:15]} 31. Rc2 {[%emt 0:01:12]} Qd4 {[%emt 0:01:39]} 32. Qxd4 {[%emt 0:00:49]} Rxd4 {[%emt 0:00:07]} 33. cxb5 {[%emt 0:00:03]} cxb5 {[%emt 0:00:08]} 34. Rc6 {[%emt 0:00:05]} a5 {[%emt 0:03:02]} 35. Rc5 {[%emt 0:02:59]} Rd2 {[%emt 0:01:19]} 36. a3 {[%emt 0:00:41]} Ra2 {[%emt 0:01:57]} 37. Rxb5 {[%emt 0:00:36]} Rxa3 {[%emt 0:00:06]} 38. Nc4 {[%emt 0:00:13]} Ra1+ {[%emt 0:00:15]} 39. Kh2 {[%emt 0:00:06]} a4 {[%emt 0:00:07]} 40. Ra5 {[%emt 0:00:08]} Ra2 {[%emt 0:02:38]} 41. bxa4 {[%emt 0:01:48]} Rxf2 {[%emt 0:06:45]} 42. Ra7 {[%emt 0:01:05]} Ne4 {[%emt 0:00:36]} 43. a5 {[%emt 0:01:19]} Ra2 {[%emt 0:01:01]} 44. Ne5 {[%emt 0:02:23]} Nd6 {[%emt 0:00:32]} 45. Nc6 {[%emt 0:00:41]} Kf6 {[%emt 0:06:28]} 46. a6 {[%emt 0:03:03]} Nb5 {[%emt 0:01:00]} 47. Rb7 {[%emt 0:04:36]} Rxa6 {[%emt 0:01:10]} 48. Nb4 {[%emt 0:00:05]} Nd6 {[%emt 0:00:30]} 49. Rd7 {[%emt 0:00:26]} Ke6 {[%emt 0:00:17]} 50. Rxf7 {[%emt 0:00:07]} Nxf7 {[%emt 0:00:07]} 51. Nxa6 {[%emt 0:00:05]} g5 {[%emt 0:00:15]} 52. Nc5+ {[%emt 0:00:04]} Kd5 {[%emt 0:00:43]} 53. Nd7 {[%emt 0:00:07]} Ke6 {[%emt 0:00:35]} 54. Nf8+ {[%emt 0:00:11]} Kf6 {[%emt 0:00:04]} 55. Nxh7+ {[%emt 0:00:05]} Kg7 {[%emt 0:00:51]} 56. Nxg5 {[%emt 0:00:04]} Nxg5 {[%emt 0:00:06]} 57. Kg3 {[%emt 0:00:07]} Kg6 {[%emt 0:00:09]} 58. Kg4 {[%emt 0:00:06]} Ne4 {[%emt 0:00:09]} 59. Kf4 {[%emt 0:00:05]} Nf2 {[%emt 0:00:19]} 60. Kf3 {[%emt 0:00:08]} Nxh3 {[%emt 0:00:06]} 61. g3 {[%emt 0:00:03]} Kg5 {[%emt 0:00:11]} 62. g4 {[%emt 0:00:07]} Nf2 {[%emt 0:00:06]} 63. Kg3 {[%emt 0:00:06]} Nxg4 {[%emt 0:00:04]} 1/2-1/2

[Event "48th Indian U15-ch Open 2023"]
[Site "Jalgaon"]
[Date "2024.01.03"]
[Round "10.8"]
[White "Patil Akshaj"]
[Black "Vivaan Vijay Saraogi"]
[Result "0-1"]
[ECO "B04"]
[WhiteElo "1559"]
[BlackElo "1982"]
[Annotator "RC"]
[PlyCount "94"]
[EventDate "2023.12.30"]
[EventType "swiss"]
[EventCountry "IND"]
[SourceTitle "playchess.com"]
[Source "ChessBase"]
[SourceQuality "1"]
[TimeControl "5400+30"]

1. e4 {[%emt 0:00:03]} Nf6 {[%emt 0:00:34]} 2. e5 {[%emt 0:00:13]} Nd5 {[%emt 0:00:05]} 3. d4 {[%emt 0:00:08]} d6 {[%emt 0:00:07]} 4. Nf3 {[%emt 0:00:17]} Nc6 {[%emt 0:00:14]} 5. Bc4 {[%emt 0:01:12]} dxe5 {[%emt 0:01:07]} 6. Nxe5 {[%emt 0:00:37]} Nxe5 {[%emt 0:13:17]} 7. dxe5 {[%emt 0:00:24]} Be6 {[%emt 0:00:06]} 8. O-O {[%emt 0:02:22]} c6 {[%emt 0:02:24]} 9. Qf3 {[%emt 0:02:29]} Qc7 {[%emt 0:00:42]} 10. Re1 {[%emt 0:02:30]} g6 {[%emt 0:00:43]} 11. Nc3 {[%emt 0:02:10]} Rd8 {[%emt 0:01:22]} 12. Nxd5 {[%emt 0:00:24]} Bxd5 {[%emt 0:00:18]} 13. Bxd5 {[%emt 0:00:59]} Rxd5 {[%emt 0:00:39]} 14. e6 {[%emt 0:01:36]} fxe6 {[%emt 0:09:54]} 15. Bf4 {[%emt 0:01:00]} e5 {[%emt 0:38:55]} 16. c4 {[%emt 0:00:25]} Ra5 {[%emt 0:00:21]} 17. b4 {[%emt 0:01:02]} exf4 {[%emt 0:00:11]} 18. bxa5 {[%emt 0:00:56]} Bg7 {[%emt 0:00:01]} 19. Rad1 {[%emt 0:01:54]} O-O {[%emt 0:07:04]} 20. Qa3 {[%emt 0:01:30]} Be5 {[%emt 0:02:05]} 21. f3 {[%emt 0:02:48]} c5 {[%emt 0:01:03]} 22. Rd5 {[%emt 0:03:10]} Bd4+ {[%emt 0:05:16]} 23. Kh1 {[%emt 0:01:46]} Rf6 {[%emt 0:00:18]} 24. Qa4 {[%emt 0:02:01]} Rc6 {[%emt 0:00:12]} 25. a6 {[%emt 0:01:15]} bxa6 {[%emt 0:10:17]} 26. Rd8+ {[%emt 0:00:06]} Kg7 {[%emt 0:00:17]} 27. Re8 {[%emt 0:01:44]} Bf6 {[%emt 0:01:22]} 28. Ra8 {[%emt 0:05:14]} Qb7 {[%emt 0:01:27]} 29. Rd8 {[%emt 0:01:15]} Bd4 {[%emt 0:00:36]} 30. Rb8 {[%emt 0:03:09]} Qd7 {[%emt 0:03:44]} 31. Reb1 {[%emt 0:00:35]} Qe6 {[%emt 0:00:38]} 32. R8b7 {[%emt 0:00:25]} Bf6 {[%emt 0:00:40]} 33. Rb8 {[%emt 0:03:39]} Kh6 {[%emt 0:00:27]} 34. R8b7 {[%emt 0:01:29]} Rd6 {[%emt 0:00:31]} 35. Rxa7 {[%emt 0:00:58]} Rd2 {[%emt 0:00:27]} 36. Rg1 {[%emt 0:03:55]} Bd4 {[%emt 0:00:31]} 37. Qd7 {[%emt 0:06:32]} Rxg2 {[%emt 0:00:09]} 38. Qxd4 {[%emt 0:03:35]} cxd4 {[%emt 0:00:29]} 39. Rxg2 {[%emt 0:00:46]} Qe1+ {[%emt 0:00:30]} 40. Rg1 {[%emt 0:00:05]} Qe2 {[%emt 0:00:04]} 41. Rd7 {[%emt 0:00:33]} Qxf3+ {[%emt 0:00:02]} 42. Rg2 {[%emt 0:00:17]} Qf1+ {[%emt 0:00:35]} 43. Rg1 {[%emt 0:00:29]} Qxc4 {[%emt 0:00:01]} 44. Rxe7 {[%emt 0:01:16]} Qc6+ {[%emt 0:00:07]} 45. Rg2 {[%emt 0:00:19]} f3 {[%emt 0:00:01]} 46. Re1 {[%emt 0:00:59]} fxg2+ {[%emt 0:00:07]} 47. Kg1 {[%emt 0:00:04]} d3 {[%emt 0:00:08]} 0-1

[Event "48th Indian U15-ch Open 2023"]
[Site "Jalgaon"]
[Date "2024.01.03"]
[Round "10.9"]
[White "Mrithyunjay Mahadevan"]
[Black "Anirudh, R."]
[Result "1-0"]
[ECO "C11"]
[WhiteElo "1944"]
[BlackElo "1621"]
[Annotator "RC"]
[PlyCount "125"]
[EventDate "2023.12.30"]
[EventType "swiss"]
[EventCountry "IND"]
[SourceTitle "playchess.com"]
[Source "ChessBase"]
[SourceQuality "1"]
[TimeControl "5400+30"]

1. e4 {[%emt 0:00:02]} e6 {[%emt 0:00:51]} 2. d4 {[%emt 0:00:02]} d5 {[%emt 0:00:02]} 3. Nc3 {[%emt 0:00:06]} Nf6 {[%emt 0:00:02]} 4. e5 {[%emt 0:00:07]} Nfd7 {[%emt 0:00:02]} 5. Nce2 {[%emt 0:00:10]} c5 {[%emt 0:00:05]} 6. c3 {[%emt 0:00:04]} Nc6 {[%emt 0:00:04]} 7. Nf3 {[%emt 0:00:06]} a6 {[%emt 0:03:20]} 8. Nf4 {[%emt 0:18:54]} cxd4 {[%emt 0:06:15]} 9. cxd4 {[%emt 0:01:09]} Bb4+ {[%emt 0:01:18]} 10. Bd2 {[%emt 0:00:06]} Qb6 {[%emt 0:09:30]} 11. a3 {[%emt 0:03:02]} Bxd2+ {[%emt 0:02:23]} 12. Qxd2 {[%emt 0:00:28]} Na5 {[%emt 0:02:02]} 13. Rd1 {[%emt 0:00:13]} Nb3 {[%emt 0:04:38]} 14. Qc3 {[%emt 0:00:07]} Nf8 {[%emt 0:14:05]} 15. Nh5 {[%emt 0:08:59]} Rg8 {[%emt 0:00:14]} 16. Be2 {[%emt 0:15:14]} Bd7 {[%emt 0:01:33]} 17. O-O {[%emt 0:00:26]} Rc8 {[%emt 0:02:37]} 18. Qe3 {[%emt 0:00:09]} h6 {[%emt 0:07:48]} 19. Nh4 {[%emt 0:04:26]} Na5 {[%emt 0:02:10]} 20. b4 {[%emt 0:00:25]} Nc4 {[%emt 0:05:04]} 21. Qg3 {[%emt 0:00:11]} Nh7 {[%emt 0:05:03]} 22. Bd3 {[%emt 0:12:25]} g6 {[%emt 0:00:25]} 23. Qf4 {[%emt 0:00:17]} gxh5 {[%emt 0:08:57]} 24. Bxh7 {[%emt 0:00:10]} Rg4 {[%emt 0:00:32]} 25. Qxh6 {[%emt 0:12:03]} Rxh4 {[%emt 0:01:07]} 26. Bg6 {[%emt 0:00:09]} Ba4 {[%emt 0:05:28]} 27. Rd3 {[%emt 0:06:23]} Bc2 {[%emt 0:06:42]} 28. Bxf7+ {[%emt 0:02:08]} Kxf7 {[%emt 0:01:53]} 29. Rf3+ {[%emt 0:00:48]} Bf5 {[%emt 0:00:10]} 30. Qf6+ {[%emt 0:00:02]} Ke8 {[%emt 0:00:22]} 31. Qxh4 {[%emt 0:00:02]} Kd7 {[%emt 0:01:24]} 32. Qxh5 {[%emt 0:00:10]} Qxd4 {[%emt 0:00:39]} 33. Qf7+ {[%emt 0:02:46]} Kc6 {[%emt 0:00:14]} 34. Qf6 {[%emt 0:00:21]} Qxe5 {[%emt 0:01:06]} 35. Qe7 {[%emt 0:01:40]} Kb6 {[%emt 0:01:04]} 36. h3 {[%emt 0:00:47]} Rc7 {[%emt 0:00:45]} 37. Qf8 {[%emt 0:00:46]} Qd6 {[%emt 0:01:50]} 38. Qh8 {[%emt 0:01:22]} Qe5 {[%emt 0:00:42]} 39. Qd8 {[%emt 0:01:51]} Qd6 {[%emt 0:00:58]} 40. Qxd6+ {[%emt 0:00:21]} Nxd6 {[%emt 0:00:01]} 41. g4 {[%emt 0:00:12]} Bg6 {[%emt 0:05:10]} 42. Rf6 {[%emt 0:00:25]} Bf7 {[%emt 0:00:01]} 43. f3 {[%emt 0:01:27]} Ne8 {[%emt 0:01:19]} 44. Rh6 {[%emt 0:00:00]} Rd7 {[%emt 0:00:21]} 45. g5 {[%emt 0:00:00]} Bg8 {[%emt 0:01:35]} 46. f4 {[%emt 0:00:00]} Kb5 {[%emt 0:00:25]} 47. h4 {[%emt 0:01:03]} d4 {[%emt 0:01:10]} 48. Rh8 {[%emt 0:00:10]} Rg7 {[%emt 0:00:33]} 49. Kf2 {[%emt 0:00:59]} Nd6 {[%emt 0:00:29]} 50. Rg1 {[%emt 0:03:29]} Nf7 {[%emt 0:00:29]} 51. Rh5 {[%emt 0:00:07]} Rg6 {[%emt 0:00:19]} 52. Ke2 {[%emt 0:00:16]} Nd6 {[%emt 0:00:42]} 53. Kd3 {[%emt 0:02:24]} e5 {[%emt 0:00:30]} 54. fxe5 {[%emt 0:00:08]} Nf5 {[%emt 0:00:10]} 55. Ke4 {[%emt 0:00:15]} Be6 {[%emt 0:00:16]} 56. Rh7 {[%emt 0:00:08]} b6 {[%emt 0:00:32]} 57. h5 {[%emt 0:00:18]} Rg8 {[%emt 0:00:10]} 58. g6 {[%emt 0:00:10]} Rd8 {[%emt 0:01:07]} 59. Kd3 {[%emt 0:01:44]} Bc4+ {[%emt 0:00:08]} 60. Kd2 {[%emt 0:00:06]} Re8 {[%emt 0:00:22]} 61. Rg5 {[%emt 0:01:22]} Rxe5 {[%emt 0:00:22]} 62. Rc7 {[%emt 0:02:06]} Bf1 {[%emt 0:00:59]} 63. Rf7 {[%emt 0:00:14]} 1-0

[Event "48th Indian U15-ch Open 2023"]
[Site "Jalgaon"]
[Date "2024.01.03"]
[Round "10.10"]
[White "Tirth Jayeshkumar Parmar"]
[Black "Sureka Akshat"]
[Result "1-0"]
[ECO "B52"]
[WhiteElo "1612"]
[BlackElo "1808"]
[Annotator "NA RC"]
[PlyCount "101"]
[EventDate "2023.12.30"]
[EventType "swiss"]
[EventCountry "IND"]
[SourceTitle "playchess.com"]
[Source "ChessBase"]
[SourceQuality "1"]
[TimeControl "5400+30"]

1. e4 {[%emt 0:00:08]} c5 {[%emt 0:00:15]} 2. Nf3 {[%emt 0:00:17]} d6 {[%emt 0:00:07]} 3. Bb5+ {[%emt 0:00:13]} Bd7 {[%emt 0:00:07]} 4. Bxd7+ {[%emt 0:00:15]} Qxd7 {[%emt 0:00:02]} 5. O-O {[%emt 0:00:12]} Nc6 {[%emt 0:00:31]} 6. Qe2 {[%emt 0:01:11]} g6 {[%emt 0:04:00]} 7. Rd1 {[%emt 0:00:41]} Bg7 {[%emt 0:00:06]} 8. c3 {[%emt 0:00:09]} e5 {[%emt 0:07:05]} 9. Na3 {[%emt 0:00:40]} Nge7 {[%emt 0:02:59]} 10. d4 {[%emt 0:16:08]} cxd4 {[%emt 0:00:23]} 11. cxd4 {[%emt 0:00:21]} Nxd4 {[%emt 0:04:09]} 12. Nxd4 {[%emt 0:00:33]} exd4 {[%emt 0:00:02]} 13. Nb5 {[%emt 0:01:55]} Nc6 {[%emt 0:00:56]} 14. Bf4 {[%emt 0:01:26]} Be5 {[%emt 0:00:02]} 15. Bh6 {[%emt 0:02:44]} O-O-O {[%emt 0:22:05]} 16. f4 {[%emt 0:21:40]} Bf6 {[%emt 0:00:02]} 17. Bg5 {[%emt 0:01:59]} Bxg5 {[%emt 0:04:29]} 18. fxg5 {[%emt 0:00:05]} Qe7 {[%emt 0:00:41]} 19. Qc4 {[%emt 0:07:42]} Kb8 {[%emt 0:01:11]} 20. Qd5 {[%emt 0:08:10]} Rhe8 {[%emt 0:05:35]} 21. Nxd4 {[%emt 0:00:32]} Qxe4 {[%emt 0:00:11]} 22. Nxc6+ {[%emt 0:00:19]} bxc6 {[%emt 0:00:01]} 23. Qxf7 {[%emt 0:00:34]} Qe3+ {[%emt 0:03:56]} 24. Kh1 {[%emt 0:00:23]} d5 {[%emt 0:05:47]} 25. Qf6 {[%emt 0:03:39]} Kc7 {[%emt 0:01:22]} 26. Rac1 {[%emt 0:00:56]} Re6 {[%emt 0:00:34]} 27. Qf1 {[%emt 0:08:58]} Rde8 {[%emt 0:05:20]} 28. h3 {[%emt 0:01:13]} Qxg5 {[%emt 0:01:04]} 29. b4 {[%emt 0:04:26]} Qf5 {[%emt 0:16:44]} 30. Qa6 {[%emt 0:03:57]} Qf2 {[%emt 0:00:08]} 31. Kh2 {[%emt 0:06:23]} Qf4+ {[%emt 0:02:46]} 32. Kh1 {[%emt 0:00:19]} Qxb4 {[%emt 0:01:08]} 33. Qxa7+ {[%emt 0:02:03]} Qb7 {[%emt 0:01:27]} 34. Qc5 {[%emt 0:00:00]} Kd7 {[%emt 0:06:04]} 35. Rb1 {[%emt 0:00:00]} Qc7 {[%emt 0:00:01]} 36. a4 {[%emt 0:04:07]} Re2 {[%emt 0:03:25]} 37. Rbc1 {[%emt 0:02:38]} Qd6 {[%emt 0:02:02]} 38. Qa7+ {[%emt 0:00:12]} Ke6 {[%emt 0:01:54]} 39. Qxh7 $18 {[%emt 0:02:16]} (39. Rf1 $142 Re7 40. Qa8 (40. Qd4 Kd7 $11)) 39... Kf5 {[%emt 0:00:36]} 40. Rf1+ {[%emt 0:00:29]} Kg5 {[%emt 0:00:08]} 41. h4+ {[%emt 0:00:12]} Kg4 {[%emt 0:00:01]} 42. Qh6 {[%emt 0:00:50]} Qe5 {[%emt 0:01:21]} 43. Rc2 {[%emt 0:00:11]} c5 44. Rxc5 {[%emt 0:00:30]} Rg8 {[%emt 0:01:11]} 45. Rc6 {[%emt 0:00:40]} Rxg2 {[%emt 0:00:22]} 46. Rxg6+ {[%emt 0:00:37]} Kh3 {[%emt 0:00:12]} 47. Rf3+ {[%emt 0:00:12]} Rg3 {[%emt 0:00:20]} 48. Rfxg3+ {[%emt 0:00:07]} Qxg3 {[%emt 0:00:06]} 49. Rxg3+ {[%emt 0:00:02]} Rxg3 {[%emt 0:00:08]} 50. Qe6+ {[%emt 0:00:08]} Kxh4 {[%emt 0:00:05]} 51. Qxd5 {[%emt 0:00:06]} 1-0